fUST/lending_fUST_20241121
["ID","MTS","AMOUNT","RATE_DAILY","PERIOD"]
[342765698,1732121440232,-500.0,0.00021917,2]
[342765699,1732121440242,-500.0,0.00021917,2]
[342765700,1732121440251,-500.0,0.00021917,2]
[342765701,1732121440261,-500.0,0.00021917,2]
[342765702,1732121440270,-500.0,0.00021917,2]
[342765703,1732121440279,-500.0,0.00021917,2]
[342765704,1732121440289,-502.11329868,0.00021917,2]
[342765705,1732121440299,-500.0,0.00021917,2]
[342765706,1732121440309,-500.0,0.00021917,2]
[342765707,1732121440318,-500.0,0.00021917,2]
[342765708,1732121440328,-500.0,0.00021917,2]
[342765709,1732121440338,-500.0,0.00021917,2]
[342765710,1732121440352,-500.0,0.00021917,2]
[342765711,1732121440361,-500.0,0.00021917,2]
[342765712,1732121440372,-500.0,0.00021917,2]
[342765713,1732121440382,-500.0,0.00021917,2]
[342765714,1732121440392,-500.0,0.00021917,2]
[342765715,1732121440402,-500.0,0.00021917,2]
[342765716,1732121440412,-500.0,0.00021917,2]
[342765717,1732121440421,-500.0,0.00021917,2]
[342765718,1732121440431,-496.99188658,0.00021917,2]
[342765724,1732121442440,-76.58407295,0.00021917,2]
[342765725,1732121442450,-500.0,0.00021917,2]
[342765726,1732121442460,-500.0,0.00021917,2]
[342765727,1732121442469,-151.87431452,0.00021917,2]
[342765728,1732121442480,-500.0,0.00021917,2]
[342765729,1732121442490,-500.0,0.00021917,2]
[342765730,1732121442499,-500.0,0.00021917,2]
[342765731,1732121442508,-500.0,0.00021917,2]
[342765732,1732121442518,-500.0,0.00021917,2]
[342765733,1732121442527,-500.0,0.00021917,2]
[342765734,1732121442537,-602.95126911,0.00021917,2]
[342765735,1732121442546,-500.0,0.00021917,2]
[342765736,1732121442555,-500.0,0.00021917,2]
[342765737,1732121442565,-500.0,0.00021917,2]
[342765738,1732121442574,-500.0,0.00021917,2]
[342765739,1732121442583,-500.0,0.00021917,2]
[342765740,1732121442593,-500.0,0.00021917,2]
[342765741,1732121442604,-500.0,0.00021917,2]
[342765742,1732121442614,-500.0,0.00021917,2]
[342765743,1732121442623,-500.0,0.00021917,2]
[342765744,1732121442632,-500.0,0.00021917,2]
[342765745,1732121442642,-500.0,0.00021917,2]
[342765747,1732121442651,-500.0,0.00021917,2]
[342765749,1732121442661,-341.08367357,0.00021917,2]
[342765751,1732121442670,-500.0,0.00021917,2]
[342765752,1732121442680,-500.0,0.00021917,2]
[342765753,1732121442689,-502.43907703,0.00021917,2]
[342765754,1732121442699,-500.0,0.00021917,2]
[342765755,1732121442708,-619.55191038,0.00021917,2]
[342765756,1732121442718,-500.0,0.00021917,2]
[342765757,1732121442727,-550.27,0.00021917,2]
[342765758,1732121442737,-500.0,0.00021917,2]
[342765759,1732121442746,-500.0,0.00021917,2]
[342765761,1732121442756,-500.0,0.00021917,2]
[342765762,1732121442765,-521.89410803,0.00021917,2]
[342765764,1732121442775,-500.0,0.00021917,2]
[342765765,1732121442786,-500.0,0.00021917,2]
[342765766,1732121442796,-505.66860195,0.00021917,2]
[342765767,1732121442805,-1547.02,0.00021917,2]
[342765769,1732121442815,-500.0,0.00021917,2]
[342765771,1732121442824,-500.0,0.00021917,2]
[342765772,1732121442833,-649.58574662,0.0002219,2]
[342765773,1732121442842,-500.0,0.00022191,2]
[342765775,1732121442860,-500.0,0.00022191,2]
[342765776,1732121442869,-500.0,0.00022191,2]
[342765777,1732121442878,-500.0,0.00022191,2]
[342765778,1732121442887,-500.0,0.00022191,2]
[342765779,1732121442897,-500.0,0.00022191,2]
[342765780,1732121442907,-500.0,0.00022191,2]
[342765781,1732121442916,-500.0,0.00022191,2]
[342765783,1732121442926,-500.0,0.00022191,2]
[342765785,1732121442936,-500.0,0.00022191,2]
[342765787,1732121442946,-500.0,0.00022191,2]
[342765788,1732121442955,-500.0,0.00022191,2]
[342765790,1732121442965,-500.0,0.00022191,2]
[342765792,1732121442974,-500.0,0.00022191,2]
[342765794,1732121442984,-500.0,0.00022191,2]
[342765795,1732121442994,-500.0,0.00022191,2]
[342765797,1732121443004,-500.0,0.00022191,2]
[342765799,1732121443013,-500.0,0.00022191,2]
[342765800,1732121443023,-500.0,0.00022191,2]
[342765802,1732121443032,-500.0,0.00022191,2]
[342765803,1732121443042,-500.0,0.00022191,2]
[342765805,1732121443051,-500.0,0.00022191,2]
[342765807,1732121443062,-249.11,0.00022191,2]
[342765808,1732121443071,-500.0,0.00022191,2]
[342765809,1732121443081,-500.0,0.00022191,2]
[342765810,1732121443091,-500.0,0.00022191,2]
[342765811,1732121443104,-500.0,0.00022191,2]
[342765812,1732121443113,-500.0,0.00022191,2]
[342765813,1732121443122,-171.81031275,0.00022191,2]
[342765815,1732121443131,-500.0,0.00022191,2]
[342765817,1732121443141,-500.0,0.00022191,2]
[342765818,1732121443155,-500.0,0.00022191,2]
[342765820,1732121443164,-195.14679887,0.00022191,2]
[342765822,1732121443174,-500.0,0.00022191,2]
[342765824,1732121443186,-500.0,0.00022191,2]
[342765825,1732121443195,-544.87,0.00022191,2]
[342765826,1732121443204,-500.0,0.00022191,2]
[342765827,1732121443214,-500.0,0.00022191,2]
[342765828,1732121443226,-500.0,0.00022191,2]
[342765829,1732121443236,-500.0,0.00022191,2]
[342765830,1732121443245,-500.0,0.00022191,2]
[342765831,1732121443255,-211.88391882,0.00022191,2]
[342765832,1732121443265,-500.0,0.00022191,2]
[342765834,1732121443274,-1853.93,0.00022191,2]
[342765836,1732121443284,-500.0,0.00022191,2]
[342765837,1732121443293,-500.0,0.00022191,2]
[342765838,1732121443303,-500.0,0.00022191,2]
[342765839,1732121443313,-500.0,0.00022191,2]
[342765840,1732121443323,-500.0,0.00022191,2]
[342765841,1732121443333,-500.0,0.00022191,2]
[342765843,1732121443343,-500.0,0.00022191,2]
[342765845,1732121443357,-500.0,0.00022191,2]
[342765847,1732121443367,-500.0,0.00022191,2]
[342765849,1732121443376,-500.0,0.00022191,2]
[342765850,1732121443385,-500.0,0.00022191,2]
[342765851,1732121443394,-500.0,0.00022191,2]
[342765852,1732121443404,-926.14,0.00022191,2]
[342765853,1732121443413,-500.0,0.00022191,2]
[342765854,1732121443422,-500.0,0.00022191,2]
[342765855,1732121443431,-500.0,0.00022191,2]
[342765856,1732121443441,-500.0,0.00022191,2]
[342765857,1732121443450,-500.0,0.00022191,2]
[342765858,1732121443460,-500.0,0.00022191,2]
[342765859,1732121443469,-502.10230827,0.00022191,2]
[342765860,1732121443479,-500.0,0.00022191,2]
[342765861,1732121443488,-500.0,0.00022191,2]
[342765862,1732121443497,-500.0,0.00022191,2]
[342765863,1732121443507,-500.0,0.00022191,2]
[342765864,1732121443516,-500.0,0.00022191,2]
[342765865,1732121443526,-500.0,0.00022191,2]
[342765866,1732121443535,-500.0,0.00022191,2]
[342765867,1732121443545,-500.0,0.00022191,2]
[342765868,1732121443555,-422.68627434,0.00022191,2]
[342765869,1732121443565,-500.0,0.00022191,2]
[342765870,1732121443574,-500.0,0.00022191,2]
[342765871,1732121443584,-500.0,0.00022191,2]
[342765872,1732121443593,-500.0,0.00022191,2]
[342765873,1732121443606,-501.70962605,0.00022191,2]
[342765874,1732121443616,-500.0,0.00022191,2]
[342765875,1732121443626,-500.0,0.00022191,2]
[342765876,1732121443636,-500.0,0.00022191,2]
[342765877,1732121443646,-564.27,0.00022191,2]
[342765878,1732121443655,-500.0,0.00022191,2]
[342765879,1732121443665,-500.0,0.00022191,2]
[342765880,1732121443675,-166.84010907,0.00022191,2]
[342765881,1732121443684,-500.0,0.00022191,2]
[342765882,1732121443694,-445.91,0.00022191,2]
[342765883,1732121443703,-500.0,0.00022191,2]
[342765884,1732121443713,-500.0,0.00022191,2]
[342765885,1732121443723,-500.0,0.00022191,2]
[342765886,1732121443733,-500.0,0.00022191,2]
[342765887,1732121443743,-500.0,0.00022191,2]
[342765888,1732121443752,-500.0,0.00022191,2]
[342765889,1732121443761,-1547.02,0.00022191,2]
[342765890,1732121443771,-312.46,0.00022411,3]
[342765891,1732121443780,-500.0,0.00022465,2]
[342765892,1732121443790,-500.0,0.00022465,2]
[342765893,1732121443799,-500.0,0.00022465,2]
[342765894,1732121443809,-320.17,0.00022465,2]
[342765895,1732121443819,-500.0,0.00022465,2]
[342765896,1732121443828,-500.0,0.00022465,2]
[342765897,1732121443837,-544.13,0.00022465,2]
[342765898,1732121443848,-500.0,0.00022465,2]
[342765899,1732121443857,-6045.32571644,0.00022465,2]
[342765900,1732121443866,-501.15,0.00022465,2]
[342765901,1732121443875,-500.0,0.00022465,2]
[342765902,1732121443885,-500.0,0.00022465,2]
[342765903,1732121443894,-177.84080941,0.00022465,2]
[342765904,1732121443904,-500.0,0.00022465,2]
[342765905,1732121443914,-500.0,0.00022465,2]
[342765906,1732121443923,-500.0,0.00022465,2]
[342765907,1732121443932,-500.0,0.00022465,2]
[342765908,1732121443941,-500.0,0.00022465,2]
[342765909,1732121443952,-500.0,0.00022465,2]
[342765910,1732121443961,-500.0,0.00022465,2]
[342765911,1732121443971,-340.55642921,0.00022465,2]
[342765912,1732121443980,-500.0,0.00022465,2]
[342765913,1732121443989,-544.87,0.00022465,2]
[342765914,1732121443998,-500.0,0.00022465,2]
[342765915,1732121444007,-500.0,0.00022465,2]
[342765916,1732121444098,-500.0,0.00022465,2]
[342765917,1732121444108,-500.0,0.00022465,2]
[342765918,1732121444118,-500.0,0.00022465,2]
[342765919,1732121444128,-500.0,0.00022465,2]
[342765920,1732121444138,-1853.93,0.00022465,2]
[342765921,1732121444156,-500.0,0.00022465,2]
[342765922,1732121444166,-223.34,0.00022465,2]
[342765923,1732121444175,-500.0,0.00022465,2]
[342765924,1732121444186,-500.0,0.00022465,2]
[342765925,1732121444195,-500.0,0.00022465,2]
[342765926,1732121444206,-500.0,0.00022465,2]
[342765927,1732121444215,-500.0,0.00022465,2]
[342765928,1732121444226,-500.0,0.00022465,2]
[342765929,1732121444236,-500.0,0.00022465,2]
[342765930,1732121444245,-186.56,0.00022465,2]
[342765931,1732121444255,-926.14,0.00022465,2]
[342765932,1732121444264,-500.0,0.00022465,2]
[342765933,1732121444274,-461.02,0.00022465,2]
[342765934,1732121444283,-500.0,0.00022465,2]
[342765935,1732121444292,-500.0,0.00022465,2]
[342765936,1732121444302,-516.2,0.00022465,2]
[342765937,1732121444312,-500.0,0.00022465,2]
[342765938,1732121444322,-500.0,0.00022465,2]
[342765939,1732121444332,-500.0,0.00022465,2]
[342765940,1732121444341,-500.0,0.00022465,2]
[342765941,1732121444353,-500.0,0.00022465,2]
[342765942,1732121444362,-500.0,0.00022465,2]
[342765943,1732121444372,-500.0,0.00022465,2]
[342765944,1732121444381,-351.18243142,0.00022465,2]
[342765945,1732121444390,-279.51,0.00022465,2]
[342765946,1732121444400,-500.0,0.00022465,2]
[342765947,1732121444409,-500.0,0.00022465,2]
[342765948,1732121444421,-500.0,0.00022465,2]
[342765949,1732121444431,-500.0,0.00022465,2]
[342765950,1732121444441,-500.0,0.00022465,2]
[342765951,1732121444451,-294.06,0.00022465,2]
[342765952,1732121444460,-500.0,0.00022465,2]
[342765953,1732121444470,-500.0,0.00022465,2]
[342765954,1732121444479,-1547.02,0.00022465,2]
[342765955,1732121444488,-420.0,0.00022683,2]
[342765956,1732121444499,-466.84,0.00022739,2]
[342765957,1732121444508,-319.66,0.00022739,2]
[342765958,1732121444519,-630.05,0.00022739,2]
[342765959,1732121444528,-500.0,0.00022739,2]
[342765960,1732121444538,-647.78,0.00022739,2]
[342765961,1732121444547,-500.0,0.00022739,2]
[342765962,1732121444557,-500.0,0.00022739,2]
[342765963,1732121444566,-500.0,0.00022739,2]
[342765964,1732121444575,-500.0,0.00022739,2]
[342765965,1732121444584,-500.0,0.00022739,2]
[342765966,1732121444595,-309.86,0.00022739,2]
[342765967,1732121444607,-296.0,0.00022739,2]
[342765968,1732121444616,-500.0,0.00022739,2]
[342765969,1732121444625,-544.87,0.00022739,2]
[342765970,1732121444634,-500.0,0.00022739,2]
[342765971,1732121444643,-500.0,0.00022739,2]
[342765972,1732121444652,-500.0,0.00022739,2]
[342765973,1732121444661,-500.0,0.00022739,2]
[342765974,1732121444670,-500.0,0.00022739,2]
[342765975,1732121444679,-1853.93,0.00022739,2]
[342765976,1732121444689,-597.47,0.00022739,2]
[342765977,1732121444699,-430.61,0.00022739,2]
[342765978,1732121444709,-282.43817884,0.00022739,2]
[342765979,1732121444718,-500.0,0.00022739,2]
[342765980,1732121444728,-500.0,0.00022739,2]
[342765981,1732121444737,-343.65,0.00022739,2]
[342765982,1732121444747,-500.0,0.00022739,2]
[342765983,1732121444756,-926.14,0.00022739,2]
[342765984,1732121444765,-500.0,0.00022739,2]
[342765985,1732121444775,-212.28,0.00022739,2]
[342765986,1732121444784,-500.0,0.00022739,2]
[342765987,1732121444793,-500.0,0.00022739,2]
[342765988,1732121444803,-239.26,0.00022739,2]
[342765989,1732121444812,-614.22760858,0.00022739,2]
[342765990,1732121444822,-500.0,0.00022739,2]
[342765991,1732121444833,-500.0,0.00022739,2]
[342765992,1732121444843,-500.0,0.00022739,2]
[342765993,1732121444857,-500.0,0.00022739,2]
[342765994,1732121444867,-444.54,0.00022739,2]
[342765995,1732121444876,-500.0,0.00022739,2]
[342765996,1732121444885,-500.0,0.00022739,2]
[342765997,1732121444894,-500.0,0.00022739,2]
[342765998,1732121444906,-500.0,0.00022739,2]
[342765999,1732121444920,-500.0,0.00022739,2]
[342766000,1732121444930,-1547.02,0.00022739,2]
[342766001,1732121444939,-500.0,0.00022744,2]
[342766002,1732121444948,-501.86578006,0.00022744,2]
[342766003,1732121444958,-500.0,0.00022744,2]
[342766004,1732121444968,-500.0,0.00022744,2]
[342766005,1732121444977,-359.0,0.00022934,2]
[342766006,1732121444987,-500.0,0.00022943,2]
[342766007,1732121444997,-539.98947699,0.00022943,2]
[342766008,1732121445006,-500.0,0.00022943,2]
[342766009,1732121445016,-500.0,0.00022978,2]
[342766010,1732121445025,-500.0,0.00022978,2]
[342766011,1732121445035,-302.36637322,0.00022978,2]
[342766012,1732121445048,-500.0,0.00023009,2]
[342766013,1732121445059,-897.4,0.00023012,2]
[342766014,1732121445069,-500.0,0.00023012,2]
[342766015,1732121445080,-504.44464,0.00023013,2]
[342766016,1732121445091,-175.61,0.00023013,2]
[342766017,1732121445104,-500.0,0.00023013,2]
[342766018,1732121445114,-500.0,0.00023013,2]
[342766019,1732121445123,-500.0,0.00023013,2]
[342766020,1732121445132,-500.0,0.00023013,2]
[342766021,1732121445143,-500.0,0.00023013,2]
[342766022,1732121445154,-500.0,0.00023013,2]
[342766023,1732121445164,-544.87,0.00023013,2]
[342766024,1732121445174,-500.0,0.00023013,2]
[342766025,1732121445183,-500.0,0.00023013,2]
[342766026,1732121445194,-469.54,0.00023013,2]
[342766027,1732121445204,-500.0,0.00023013,2]
[342766028,1732121445214,-500.0,0.00023013,2]
[342766029,1732121445226,-1853.93,0.00023013,2]
[342766030,1732121445236,-463.49745091,0.00023013,2]
[342766031,1732121445246,-500.0,0.00023013,2]
[342766032,1732121445255,-500.0,0.00023013,2]
[342766033,1732121445265,-926.14,0.00023013,2]
[342766034,1732121445275,-500.0,0.00023013,2]
[342766035,1732121445285,-500.0,0.00023013,2]
[342766036,1732121445295,-500.0,0.00023013,2]
[342766037,1732121445304,-296.21247232,0.00023013,2]
[342766038,1732121445319,-203.78752768,0.00023013,2]
[342766039,1732121445330,-500.0,0.00023013,2]
[342766040,1732121445339,-500.0,0.00023013,2]
[342766041,1732121445352,-500.0,0.00023013,2]
[342766042,1732121445363,-500.0,0.00023013,2]
[342766043,1732121445375,-500.0,0.00023013,2]
[342766044,1732121445384,-500.0,0.00023013,2]
[342766045,1732121445394,-500.0,0.00023013,2]
[342766046,1732121445404,-500.0,0.00023013,2]
[342766047,1732121445413,-1109.11756975,0.00023013,2]
[342766048,1732121445425,-437.90243025,0.00023013,2]
[342766049,1732121445434,-500.0,0.00023169,2]
[342766050,1732121445444,-503.56010155,0.00023231,2]
[342766051,1732121445453,-562.9393885,0.00023231,2]
[342766052,1732121445463,-897.4,0.00023286,2]
[342766053,1732121445472,-500.0,0.00023286,2]
[342766054,1732121445482,-500.0,0.00023287,2]
[342766055,1732121445491,-500.0,0.00023287,2]
[342766056,1732121445500,-500.0,0.00023287,2]
[342766057,1732121445509,-500.0,0.00023287,2]
[342766058,1732121445519,-500.0,0.00023287,2]
[342766059,1732121445528,-500.0,0.00023287,2]
[342766060,1732121445537,-500.0,0.00023287,2]
[342766061,1732121445546,-544.87,0.00023287,2]
[342766062,1732121445555,-369.8,0.00023287,2]
[342766063,1732121445565,-500.0,0.00023287,2]
[342766064,1732121445574,-500.0,0.00023287,2]
[342766065,1732121445583,-500.0,0.00023287,2]
[342766066,1732121445593,-1853.93,0.00023287,2]
[342766067,1732121445606,-500.0,0.00023287,2]
[342766068,1732121445615,-500.0,0.00023287,2]
[342766069,1732121445624,-926.14,0.00023287,2]
[342766070,1732121445634,-500.0,0.00023287,2]
[342766071,1732121445643,-500.0,0.00023287,2]
[342766072,1732121445652,-500.0,0.00023287,2]
[342766074,1732121445661,-500.0,0.00023287,2]
[342766076,1732121445671,-500.0,0.00023287,2]
[342766078,1732121445679,-500.0,0.00023287,2]
[342766080,1732121445688,-500.0,0.00023287,2]
[342766082,1732121445698,-446.8,0.00023287,2]
[342766084,1732121445707,-500.0,0.00023287,2]
[342766085,1732121445716,-622.2,0.00023287,2]
[342766086,1732121445725,-215.14514516,0.00023287,2]
[342766087,1732121445735,-626.89077819,0.00023287,2]
[342766088,1732121445744,-1547.02,0.00023287,2]
[342766089,1732121445753,-500.0,0.00023292,2]
[342766090,1732121445763,-1000.0,0.00023292,2]
[342766091,1732121445773,-500.0,0.0002349,2]
[342766092,1732121445782,-500.0,0.0002349,2]
[342766093,1732121445791,-500.0,0.00023526,2]
[342766095,1732121445800,-500.0,0.00023526,2]
[342766096,1732121445809,-261.76861022,0.00023552,2]
[342766097,1732121445818,-897.4,0.0002356,2]
[342766098,1732121445827,-500.0,0.0002356,2]
[342766099,1732121445837,-500.0,0.00023561,2]
[342766100,1732121445846,-500.0,0.00023561,2]
[342766101,1732121445861,-500.0,0.00023561,2]
[342766102,1732121445870,-500.0,0.00023561,2]
[342766103,1732121445880,-500.0,0.00023561,2]
[342766104,1732121445890,-500.0,0.00023561,2]
[342766105,1732121445899,-544.87,0.00023561,2]
[342766106,1732121445908,-500.0,0.00023561,2]
[342766107,1732121445918,-500.0,0.00023561,2]
[342766108,1732121445927,-500.0,0.00023561,2]
[342766109,1732121445936,-1853.93,0.00023561,2]
[342766110,1732121445946,-500.0,0.00023561,2]
[342766111,1732121445956,-500.0,0.00023561,2]
[342766112,1732121445965,-926.14,0.00023561,2]
[342766113,1732121445974,-500.0,0.00023561,2]
[342766114,1732121445983,-500.0,0.00023561,2]
[342766116,1732121445992,-500.0,0.00023561,2]
[342766117,1732121446001,-500.0,0.00023561,2]
[342766119,1732121446011,-500.0,0.00023561,2]
[342766121,1732121446021,-500.0,0.00023561,2]
[342766123,1732121446030,-500.0,0.00023561,2]
[342766124,1732121446039,-500.0,0.00023561,2]
[342766126,1732121446048,-1547.02,0.00023561,2]
[342766127,1732121446058,-330.15,0.00023744,4]
[342766128,1732121446069,-897.4,0.00023834,2]
[342766129,1732121446078,-500.0,0.00023834,2]
[342766130,1732121446088,-500.0,0.00023835,2]
[342766131,1732121446099,-500.0,0.00023835,2]
[342766133,1732121446110,-500.0,0.00023835,2]
[342766135,1732121446120,-500.0,0.00023835,2]
[342766136,1732121446129,-500.0,0.00023835,2]
[342766138,1732121446138,-500.0,0.00023835,2]
[342766139,1732121446153,-544.87,0.00023835,2]
[342766140,1732121446162,-500.0,0.00023835,2]
[342766141,1732121446171,-500.0,0.00023835,2]
[342766142,1732121446180,-455.80001979,0.00023835,2]
[342766143,1732121446194,-44.19998021,0.00023835,2]
[342766144,1732121446203,-1853.93,0.00023835,2]
[342766145,1732121446214,-500.0,0.00023835,2]
[342766147,1732121446226,-500.0,0.00023835,2]
[342766148,1732121446235,-926.14,0.00023835,2]
[342766149,1732121446244,-500.0,0.00023835,2]
[342766150,1732121446254,-488.0,0.00023835,2]
[342766151,1732121446263,-500.0,0.00023835,2]
[342766152,1732121446273,-500.0,0.00023835,2]
[342766153,1732121446282,-500.0,0.00023835,2]
[342766154,1732121446292,-500.0,0.00023835,2]
[342766155,1732121446301,-500.0,0.00023835,2]
[342766156,1732121446386,-500.0,0.00023835,2]
[342766157,1732121446396,-1547.02,0.00023835,2]
[342766158,1732121446406,-492.41,0.000239,2]
[342766159,1732121446415,-897.4,0.00024108,2]
[342766160,1732121446425,-500.0,0.00024108,2]
[342766161,1732121446434,-500.0,0.00024109,2]
[342766162,1732121446443,-500.0,0.00024109,2]
[342766163,1732121446453,-225.83,0.00024109,2]
[342766164,1732121446462,-500.0,0.00024109,2]
[342766166,1732121446471,-500.0,0.00024109,2]
[342766167,1732121446481,-500.0,0.00024109,2]
[342766168,1732121446490,-544.87,0.00024109,2]
[342766169,1732121446499,-500.0,0.00024109,2]
[342766170,1732121446508,-304.2,0.00024109,2]
[342766171,1732121446518,-500.0,0.00024109,2]
[342766172,1732121446527,-1853.93,0.00024109,2]
[342766173,1732121446536,-500.0,0.00024109,2]
[342766174,1732121446546,-500.0,0.00024109,2]
[342766175,1732121446556,-926.14,0.00024109,2]
[342766176,1732121446565,-500.0,0.00024109,2]
[342766177,1732121446576,-500.0,0.00024109,2]
[342766178,1732121446586,-500.0,0.00024109,2]
[342766179,1732121446596,-500.0,0.00024109,2]
[342766180,1732121446607,-500.0,0.00024109,2]
[342766181,1732121446616,-500.0,0.00024109,2]
[342766182,1732121446626,-500.0,0.00024109,2]
[342766183,1732121446635,-1547.02,0.00024109,2]
[342766184,1732121446646,-500.0,0.00024294,2]
[342766185,1732121446655,-897.4,0.00024382,2]
[342766186,1732121446664,-500.0,0.00024382,2]
[342766187,1732121446676,-500.0,0.00024383,2]
[342766188,1732121446686,-500.0,0.00024383,2]
[342766189,1732121446696,-500.0,0.00024383,2]
[342766190,1732121446706,-182.36,0.00024383,2]
[342766191,1732121446715,-500.0,0.00024383,2]
[342766192,1732121446724,-544.87,0.00024383,2]
[342766193,1732121446734,-500.0,0.00024383,2]
[342766194,1732121446744,-500.0,0.00024383,2]
[342766195,1732121446753,-1853.93,0.00024383,2]
[342766196,1732121446763,-500.0,0.00024383,2]
[342766197,1732121446773,-500.0,0.00024383,2]
[342766198,1732121446782,-926.14,0.00024383,2]
[342766199,1732121446792,-500.0,0.00024383,2]
[342766200,1732121446802,-500.0,0.00024383,2]
[342766201,1732121446811,-500.0,0.00024383,2]
[342766202,1732121446821,-500.0,0.00024383,2]
[342766203,1732121446830,-500.0,0.00024383,2]
[342766204,1732121446839,-500.0,0.00024383,2]
[342766205,1732121446851,-500.0,0.00024383,2]
[342766206,1732121446861,-1547.02,0.00024383,2]
[342766207,1732121446871,-897.4,0.00024656,2]
[342766208,1732121446880,-500.0,0.00024656,2]
[342766209,1732121446890,-345.51297949,0.00024657,2]
[342766210,1732121446899,-500.0,0.00024657,2]
[342766211,1732121446909,-379.46257141,0.00024657,2]
[342766212,1732121446919,-500.0,0.00024657,2]
[342766213,1732121446929,-500.0,0.00024657,3]
[342766214,1732121446939,-544.87,0.00024657,2]
[342766215,1732121446948,-500.0,0.00024657,2]
[342766216,1732121446958,-500.0,0.00024657,2]
[342766217,1732121446968,-1853.93,0.00024657,2]
[342766218,1732121446978,-500.0,0.00024657,2]
[342766219,1732121446988,-584.1,0.00024657,2]
[342766220,1732121446999,-926.14,0.00024657,2]
[342766221,1732121447009,-500.0,0.00024657,2]
[342766222,1732121447018,-500.0,0.00024657,2]
[342766223,1732121447028,-500.0,0.00024657,2]
[342766224,1732121447038,-426.15932681,0.00024657,2]
[342766225,1732121447047,-500.0,0.00024657,2]
[342766226,1732121447057,-500.0,0.00024657,2]
[342766227,1732121447066,-500.0,0.00024657,2]
[342766228,1732121447075,-1547.02,0.00024657,2]
[342766229,1732121447085,-587.0,0.00024678,2]
[342766230,1732121447094,-530.0,0.00024795,2]
[342766231,1732121447108,-897.4,0.0002493,2]
[342766232,1732121447117,-500.0,0.0002493,2]
[342766233,1732121447127,-500.0,0.00024931,2]
[342766234,1732121447136,-359.19,0.00024931,2]
[342766235,1732121447149,-544.87,0.00024931,2]
[342766236,1732121447158,-500.0,0.00024931,2]
[342766237,1732121447169,-500.0,0.00024931,2]
[342766238,1732121447179,-1853.93,0.00024931,2]
[342766239,1732121447188,-500.0,0.00024931,2]
[342766240,1732121447199,-926.14,0.00024931,2]
[342766241,1732121447209,-500.0,0.00024931,2]
[342766242,1732121447219,-500.0,0.00024931,2]
[342766243,1732121447228,-500.0,0.00024931,2]
[342766244,1732121447239,-500.0,0.00024931,2]
[342766245,1732121447249,-500.0,0.00024931,2]
[342766246,1732121447258,-500.0,0.00024931,2]
[342766247,1732121447268,-1547.02,0.00024931,2]
[342766248,1732121447277,-897.4,0.00025204,2]
[342766249,1732121447286,-500.0,0.00025204,2]